Publisher Label,Publisher URI,"PaymentDate","Organisational Unit","Beneficiary Name","Purpose","Amount","Card Transaction","Irrecoverable VAT Amount"
"Wolverhampton City Council","http://opendatacommunities.org/id/metropolitan-district-council/wolverhampton",01/06/2014 00:00:00,"Governance","ADARE LTD","Comms - Postage",37352.89,"4812","All VAT recoverable"
"Wolverhampton City Council","http://opendatacommunities.org/id/metropolitan-district-council/wolverhampton",01/07/2014 00:00:00,"Governance","ADARE LTD","Comms - Postage",19812.41,"4812","All VAT recoverable"
"Wolverhampton City Council","http://opendatacommunities.org/id/metropolitan-district-council/wolverhampton",01/08/2014 00:00:00,"Governance","ADARE LTD","Comms - Postage",752.24,"4812","All VAT recoverable"
"Wolverhampton City Council","http://opendatacommunities.org/id/metropolitan-district-council/wolverhampton",01/10/2014 00:00:00,"Governance","ADARE LTD","Comms - Postage",30293.6,"4812","All VAT recoverable"
"Wolverhampton City Council","http://opendatacommunities.org/id/metropolitan-district-council/wolverhampton",01/11/2014 00:00:00,"Governance","ADARE LTD","Comms - Postage",4508.19,"4812","All VAT recoverable"
"Wolverhampton City Council","http://opendatacommunities.org/id/metropolitan-district-council/wolverhampton",01/06/2014 00:00:00,"Investments","ASHLEY HELME ASSOCIATES","Property Management - Supplies & Services - General",746.3,"8999","All VAT recoverable"
"Wolverhampton City Council","http://opendatacommunities.org/id/metropolitan-district-council/wolverhampton",01/11/2014 00:00:00,"Investments","ASHLEY HELME ASSOCIATES","Property Management - Supplies & Services - General",630,"8999","All VAT recoverable"
"Wolverhampton City Council","http://opendatacommunities.org/id/metropolitan-district-council/wolverhampton",01/07/2014 00:00:00,"Financial Services","Badenoch & Clark Limited","Agency Staff",2473.5,"7361","All VAT recoverable"
"Wolverhampton City Council","http://opendatacommunities.org/id/metropolitan-district-council/wolverhampton",01/10/2014 00:00:00,"Financial Services","Badenoch & Clark Limited","Agency Staff",525,"7361","All VAT recoverable"
"Wolverhampton City Council","http://opendatacommunities.org/id/metropolitan-district-council/wolverhampton",01/11/2014 00:00:00,"Governance","BIRMINGHAM CITY COUNCIL","Comms - Postage",2130.37,"9399","All VAT recoverable"
"Wolverhampton City Council","http://opendatacommunities.org/id/metropolitan-district-council/wolverhampton",01/07/2014 00:00:00,"Financial Services","CIPFA BUSINESS LIMITED","Services - Professional Fees",660,"8999","All VAT recoverable"
"Wolverhampton City Council","http://opendatacommunities.org/id/metropolitan-district-council/wolverhampton",01/10/2014 00:00:00,"Pension Operations","CIPFA BUSINESS LIMITED","Subscriptions",660,"8999","All VAT recoverable"
"Wolverhampton City Council","http://opendatacommunities.org/id/metropolitan-district-council/wolverhampton",01/04/2014 00:00:00,"Investments","CIPFA BUSINESS LIMITED","Subscriptions",5705,"8999","All VAT recoverable"
"Wolverhampton City Council","http://opendatacommunities.org/id/metropolitan-district-council/wolverhampton",01/08/2014 00:00:00,"Governance","The Financial Times Limited","Staff Advertising Costs",500,"5192","All VAT recoverable"
"Wolverhampton City Council","http://opendatacommunities.org/id/metropolitan-district-council/wolverhampton",01/06/2014 00:00:00,"Investments","The Financial Times Limited","Staff Advertising Costs",500,"5192","All VAT recoverable"
"Wolverhampton City Council","http://opendatacommunities.org/id/metropolitan-district-council/wolverhampton",01/07/2014 00:00:00,"Investments","The Financial Times Limited","Staff Advertising Costs",500,"5192","All VAT recoverable"
"Wolverhampton City Council","http://opendatacommunities.org/id/metropolitan-district-council/wolverhampton",01/09/2014 00:00:00,"Investments","The Financial Times Limited","Staff Advertising Costs",1100,"5192","All VAT recoverable"
"Wolverhampton City Council","http://opendatacommunities.org/id/metropolitan-district-council/wolverhampton",01/10/2014 00:00:00,"Investments","The Financial Times Limited","Staff Advertising Costs",800,"5192","All VAT recoverable"
"Wolverhampton City Council","http://opendatacommunities.org/id/metropolitan-district-council/wolverhampton",01/06/2014 00:00:00,"Governance","DTZ DTL LTD CLIENT AC:COMMONRECEIPTS","Rent",26096.88,"7349","All VAT recoverable"
"Wolverhampton City Council","http://opendatacommunities.org/id/metropolitan-district-council/wolverhampton",01/06/2014 00:00:00,"Governance","DTZ DTL LTD CLIENT AC:COMMONRECEIPTS","Service Charges",24460.56,"7349","All VAT recoverable"
"Wolverhampton City Council","http://opendatacommunities.org/id/metropolitan-district-council/wolverhampton",01/11/2014 00:00:00,"Governance","DTZ DTL LTD CLIENT AC:COMMONRECEIPTS","Service Charges",29122.22,"7349","All VAT recoverable"
"Wolverhampton City Council","http://opendatacommunities.org/id/metropolitan-district-council/wolverhampton",01/06/2014 00:00:00,"Investments","EMAP PUBLISHING LTD","Conference Expenses",2847,"2741","All VAT recoverable"
"Wolverhampton City Council","http://opendatacommunities.org/id/metropolitan-district-council/wolverhampton",01/04/2014 00:00:00,"Investments","HSBC BANK PLC/HSBC SECURITY SERVICES","Services - Professional Fees",2598.75,"6012","All VAT recoverable"
"Wolverhampton City Council","http://opendatacommunities.org/id/metropolitan-district-council/wolverhampton",01/05/2014 00:00:00,"Investments","HSBC BANK PLC/HSBC SECURITY SERVICES","Services - Professional Fees",2598.75,"6012","All VAT recoverable"
"Wolverhampton City Council","http://opendatacommunities.org/id/metropolitan-district-council/wolverhampton",01/06/2014 00:00:00,"Investments","HSBC BANK PLC/HSBC SECURITY SERVICES","Services - Professional Fees",5197.5,"6012","All VAT recoverable"
"Wolverhampton City Council","http://opendatacommunities.org/id/metropolitan-district-council/wolverhampton",01/07/2014 00:00:00,"Investments","HSBC BANK PLC/HSBC SECURITY SERVICES","Services - Professional Fees",2598.75,"6012","All VAT recoverable"
"Wolverhampton City Council","http://opendatacommunities.org/id/metropolitan-district-council/wolverhampton",01/08/2014 00:00:00,"Investments","HSBC BANK PLC/HSBC SECURITY SERVICES","Services - Professional Fees",2598.75,"6012","All VAT recoverable"
"Wolverhampton City Council","http://opendatacommunities.org/id/metropolitan-district-council/wolverhampton",01/10/2014 00:00:00,"Investments","HSBC BANK PLC/HSBC SECURITY SERVICES","Services - Professional Fees",5197.5,"6012","All VAT recoverable"
"Wolverhampton City Council","http://opendatacommunities.org/id/metropolitan-district-council/wolverhampton",01/04/2014 00:00:00,"Investments","HYMANS ROBERTSON LLP","Services - Professional Fees",10322,"6012","All VAT recoverable"
"Wolverhampton City Council","http://opendatacommunities.org/id/metropolitan-district-council/wolverhampton",01/05/2014 00:00:00,"Investments","HYMANS ROBERTSON LLP","Services - Professional Fees",10322,"6012","All VAT recoverable"
"Wolverhampton City Council","http://opendatacommunities.org/id/metropolitan-district-council/wolverhampton",01/06/2014 00:00:00,"Investments","HYMANS ROBERTSON LLP","Services - Professional Fees",10636,"6012","All VAT recoverable"
"Wolverhampton City Council","http://opendatacommunities.org/id/metropolitan-district-council/wolverhampton",01/08/2014 00:00:00,"Investments","HYMANS ROBERTSON LLP","Services - Professional Fees",13136,"6012","All VAT recoverable"
"Wolverhampton City Council","http://opendatacommunities.org/id/metropolitan-district-council/wolverhampton",01/10/2014 00:00:00,"Investments","HYMANS ROBERTSON LLP","Services - Professional Fees",5318,"6012","All VAT recoverable"
"Wolverhampton City Council","http://opendatacommunities.org/id/metropolitan-district-council/wolverhampton",01/11/2014 00:00:00,"Investments","HYMANS ROBERTSON LLP","Services - Professional Fees",15886,"6012","All VAT recoverable"
"Wolverhampton City Council","http://opendatacommunities.org/id/metropolitan-district-council/wolverhampton",01/04/2014 00:00:00,"Pension Operations","IMPROVEMENT & DEVELOPMENT AGENCY:IDA","Training Expenses",630,"8299","All VAT recoverable"
"Wolverhampton City Council","http://opendatacommunities.org/id/metropolitan-district-council/wolverhampton",01/10/2014 00:00:00,"Pension Operations","IMPROVEMENT & DEVELOPMENT AGENCY:IDA","Training Expenses",860,"8299","All VAT recoverable"
"Wolverhampton City Council","http://opendatacommunities.org/id/metropolitan-district-council/wolverhampton",01/04/2014 00:00:00,"Pension Operations","IMPROVEMENT & DEVELOPMENT AGENCY:IDA","Subscriptions",6660,"8999","All VAT recoverable"
"Wolverhampton City Council","http://opendatacommunities.org/id/metropolitan-district-council/wolverhampton",01/09/2014 00:00:00,"Pension Operations","IMPROVEMENT & DEVELOPMENT AGENCY:IDA","Subscriptions",7640,"8999","All VAT recoverable"
"Wolverhampton City Council","http://opendatacommunities.org/id/metropolitan-district-council/wolverhampton",01/05/2014 00:00:00,"Pension Operations","KONICA MINOLTA BUS.SOLUTIONS(UK)LTD.","Printing",4533.21,"2741","All VAT recoverable"
"Wolverhampton City Council","http://opendatacommunities.org/id/metropolitan-district-council/wolverhampton",01/07/2014 00:00:00,"Pension Operations","KONICA MINOLTA BUS.SOLUTIONS(UK)LTD.","Printing",2799.44,"2741","All VAT recoverable"
"Wolverhampton City Council","http://opendatacommunities.org/id/metropolitan-district-council/wolverhampton",01/09/2014 00:00:00,"Pension Operations","KONICA MINOLTA BUS.SOLUTIONS(UK)LTD.","Printing",1413,"2741","All VAT recoverable"
"Wolverhampton City Council","http://opendatacommunities.org/id/metropolitan-district-council/wolverhampton",01/10/2014 00:00:00,"Pension Operations","KONICA MINOLTA BUS.SOLUTIONS(UK)LTD.","Printing",1656.93,"2741","All VAT recoverable"
"Wolverhampton City Council","http://opendatacommunities.org/id/metropolitan-district-council/wolverhampton",01/11/2014 00:00:00,"Pension Operations","KONICA MINOLTA BUS.SOLUTIONS(UK)LTD.","Printing",1987.69,"2741","All VAT recoverable"
"Wolverhampton City Council","http://opendatacommunities.org/id/metropolitan-district-council/wolverhampton",01/05/2014 00:00:00,"Governance","KONICA MINOLTA BUS.SOLUTIONS(UK)LTD.","Printing",1064.94,"2741","All VAT recoverable"
"Wolverhampton City Council","http://opendatacommunities.org/id/metropolitan-district-council/wolverhampton",01/10/2014 00:00:00,"Governance","KONICA MINOLTA BUS.SOLUTIONS(UK)LTD.","Printing",1170.79,"2741","All VAT recoverable"
"Wolverhampton City Council","http://opendatacommunities.org/id/metropolitan-district-council/wolverhampton",01/11/2014 00:00:00,"Governance","KONICA MINOLTA BUS.SOLUTIONS(UK)LTD.","Printing",1418.4,"2741","All VAT recoverable"
"Wolverhampton City Council","http://opendatacommunities.org/id/metropolitan-district-council/wolverhampton",01/05/2014 00:00:00,"Investments","KONICA MINOLTA BUS.SOLUTIONS(UK)LTD.","Printing",1525.44,"2741","All VAT recoverable"
"Wolverhampton City Council","http://opendatacommunities.org/id/metropolitan-district-council/wolverhampton",01/07/2014 00:00:00,"Investments","KONICA MINOLTA BUS.SOLUTIONS(UK)LTD.","Printing",718.19,"2741","All VAT recoverable"
"Wolverhampton City Council","http://opendatacommunities.org/id/metropolitan-district-council/wolverhampton",01/09/2014 00:00:00,"Pension Operations","KPMG LLP FEES ACCOUNT","Services - Professional Fees",5525,"8999","All VAT recoverable"
"Wolverhampton City Council","http://opendatacommunities.org/id/metropolitan-district-council/wolverhampton",01/05/2014 00:00:00,"Investments","KPMG LLP FEES ACCOUNT","Services - Professional Fees",20700,"8999","All VAT recoverable"
"Wolverhampton City Council","http://opendatacommunities.org/id/metropolitan-district-council/wolverhampton",01/04/2014 00:00:00,"Governance","KRCS GROUP PLC","Computing - Purchase of Hardware",606.45,"5072","All VAT recoverable"
"Wolverhampton City Council","http://opendatacommunities.org/id/metropolitan-district-council/wolverhampton",01/08/2014 00:00:00,"Governance","KRCS GROUP PLC","Computing - Purchase of Hardware",637.98,"5072","All VAT recoverable"
"Wolverhampton City Council","http://opendatacommunities.org/id/metropolitan-district-council/wolverhampton",01/10/2014 00:00:00,"Governance","KRCS GROUP PLC","Computing - Purchase of Hardware",962.98,"5072","All VAT recoverable"
"Wolverhampton City Council","http://opendatacommunities.org/id/metropolitan-district-council/wolverhampton",01/08/2014 00:00:00,"Investments","LINEDATA LIMITED","Services - Consultants",1400,"5045","All VAT recoverable"
"Wolverhampton City Council","http://opendatacommunities.org/id/metropolitan-district-council/wolverhampton",01/10/2014 00:00:00,"Investments","LINEDATA LIMITED","Services - Consultants",2902.6,"5045","All VAT recoverable"
"Wolverhampton City Council","http://opendatacommunities.org/id/metropolitan-district-council/wolverhampton",01/11/2014 00:00:00,"Investments","LINEDATA LIMITED","Services - Consultants",10229.15,"5045","All VAT recoverable"
"Wolverhampton City Council","http://opendatacommunities.org/id/metropolitan-district-council/wolverhampton",01/04/2014 00:00:00,"Investments","LINEDATA LIMITED","Computing - Maint Agreements",61313.44,"5045","All VAT recoverable"
"Wolverhampton City Council","http://opendatacommunities.org/id/metropolitan-district-council/wolverhampton",01/06/2014 00:00:00,"Investments","LINEDATA LIMITED","Computing - Maint Agreements",61710.82,"5045","All VAT recoverable"
"Wolverhampton City Council","http://opendatacommunities.org/id/metropolitan-district-council/wolverhampton",01/10/2014 00:00:00,"Investments","LINEDATA LIMITED","Computing - Maint Agreements",61710.82,"5045","All VAT recoverable"
"Wolverhampton City Council","http://opendatacommunities.org/id/metropolitan-district-council/wolverhampton",01/07/2014 00:00:00,"Investments","LONDON STOCK EXCHANGE PLC","Services - General Licences",1052.88,"6012","All VAT recoverable"
"Wolverhampton City Council","http://opendatacommunities.org/id/metropolitan-district-council/wolverhampton",01/10/2014 00:00:00,"Investments","LONDON STOCK EXCHANGE PLC","Services - General Licences",529.32,"6012","All VAT recoverable"
"Wolverhampton City Council","http://opendatacommunities.org/id/metropolitan-district-council/wolverhampton",01/04/2014 00:00:00,"Financial Services","MERCER LIMITED","Services - Professional Fees",177167,"6012","All VAT recoverable"
"Wolverhampton City Council","http://opendatacommunities.org/id/metropolitan-district-council/wolverhampton",01/06/2014 00:00:00,"Financial Services","MERCER LIMITED","Services - Professional Fees",72609,"6012","All VAT recoverable"
"Wolverhampton City Council","http://opendatacommunities.org/id/metropolitan-district-council/wolverhampton",01/07/2014 00:00:00,"Financial Services","MERCER LIMITED","Services - Professional Fees",35787,"6012","All VAT recoverable"
"Wolverhampton City Council","http://opendatacommunities.org/id/metropolitan-district-council/wolverhampton",01/08/2014 00:00:00,"Financial Services","MERCER LIMITED","Services - Professional Fees",38459,"6012","All VAT recoverable"
"Wolverhampton City Council","http://opendatacommunities.org/id/metropolitan-district-council/wolverhampton",01/10/2014 00:00:00,"Financial Services","MERCER LIMITED","Services - Professional Fees",72577,"6012","All VAT recoverable"
"Wolverhampton City Council","http://opendatacommunities.org/id/metropolitan-district-council/wolverhampton",01/11/2014 00:00:00,"Financial Services","MERCER LIMITED","Services - Professional Fees",25126,"6012","All VAT recoverable"
"Wolverhampton City Council","http://opendatacommunities.org/id/metropolitan-district-council/wolverhampton",01/11/2014 00:00:00,"Investments","MERCER LIMITED","Services - Professional Fees",71704,"8999","All VAT recoverable"
"Wolverhampton City Council","http://opendatacommunities.org/id/metropolitan-district-council/wolverhampton",01/08/2014 00:00:00,"Pension Operations","NEOPOST LIMITED","Comms - Postage",1094.1,"4814","All VAT recoverable"
"Wolverhampton City Council","http://opendatacommunities.org/id/metropolitan-district-council/wolverhampton",01/04/2014 00:00:00,"Governance","NPOWER","Electricity",2705.13,"4900","All VAT recoverable"
"Wolverhampton City Council","http://opendatacommunities.org/id/metropolitan-district-council/wolverhampton",01/04/2014 00:00:00,"Executive","Professionals In Law","Staff Advertising Costs",595,"7361","All VAT recoverable"
"Wolverhampton City Council","http://opendatacommunities.org/id/metropolitan-district-council/wolverhampton",01/04/2014 00:00:00,"Investments","PRI ASSOCIAION LTD(GLOBAL COMPACT)","Subscriptions",7495,"8999","All VAT recoverable"
"Wolverhampton City Council","http://opendatacommunities.org/id/metropolitan-district-council/wolverhampton",01/05/2014 00:00:00,"Financial Services","PRICE WATERHOUSE COOPERS","Services - Professional Fees",48618,"8999","All VAT recoverable"
"Wolverhampton City Council","http://opendatacommunities.org/id/metropolitan-district-council/wolverhampton",01/04/2014 00:00:00,"Governance","ROYAL MAIL GROUP PLC","Comms - Postage",572.01,"9402","All VAT recoverable"
"Wolverhampton City Council","http://opendatacommunities.org/id/metropolitan-district-council/wolverhampton",01/05/2014 00:00:00,"Governance","ROYAL MAIL GROUP PLC","Comms - Postage",610.65,"9402","All VAT recoverable"
"Wolverhampton City Council","http://opendatacommunities.org/id/metropolitan-district-council/wolverhampton",01/07/2014 00:00:00,"Governance","ROYAL MAIL GROUP PLC","Comms - Postage",1794.92,"9402","All VAT recoverable"
"Wolverhampton City Council","http://opendatacommunities.org/id/metropolitan-district-council/wolverhampton",01/10/2014 00:00:00,"Governance","ROYAL MAIL GROUP PLC","Comms - Postage",1385.38,"9402","All VAT recoverable"
"Wolverhampton City Council","http://opendatacommunities.org/id/metropolitan-district-council/wolverhampton",01/11/2014 00:00:00,"Governance","ROYAL MAIL GROUP PLC","Comms - Postage",507.47,"9402","All VAT recoverable"
"Wolverhampton City Council","http://opendatacommunities.org/id/metropolitan-district-council/wolverhampton",01/07/2014 00:00:00,"Investments","SGH MARTINEAU LLP","Property Management - Supplies & Services - General",8307,"8111","All VAT recoverable"
"Wolverhampton City Council","http://opendatacommunities.org/id/metropolitan-district-council/wolverhampton",01/07/2014 00:00:00,"Investments","SGH MARTINEAU LLP","Property Management - Legal Expenses",26325.7,"8111","All VAT recoverable"
"Wolverhampton City Council","http://opendatacommunities.org/id/metropolitan-district-council/wolverhampton",01/09/2014 00:00:00,"Investments","SGH MARTINEAU LLP","Property Management - Legal Expenses",51569,"8111","All VAT recoverable"
"Wolverhampton City Council","http://opendatacommunities.org/id/metropolitan-district-council/wolverhampton",01/10/2014 00:00:00,"Investments","SGH MARTINEAU LLP","Property Management - Legal Expenses",24800,"8111","All VAT recoverable"
"Wolverhampton City Council","http://opendatacommunities.org/id/metropolitan-district-council/wolverhampton",01/07/2014 00:00:00,"Governance","SIGNS NOW UK","Vehicle Maintenance - Repairs",1223,"7299","All VAT recoverable"
"Wolverhampton City Council","http://opendatacommunities.org/id/metropolitan-district-council/wolverhampton",01/04/2014 00:00:00,"Investments","SQUIRE,SANDERS & DEMPSEY (UK) LLP","Services - Professional Fees",43125.92,"8111","All VAT recoverable"
"Wolverhampton City Council","http://opendatacommunities.org/id/metropolitan-district-council/wolverhampton",01/10/2014 00:00:00,"Investments","SQUIRE,SANDERS & DEMPSEY (UK) LLP","Services - Professional Fees",2213.5,"8111","All VAT recoverable"
"Wolverhampton City Council","http://opendatacommunities.org/id/metropolitan-district-council/wolverhampton",01/06/2014 00:00:00,"Investments","THE WORLD MARKETS COMPANY PLC","Services - Professional Fees",1425,"8999","All VAT recoverable"
"Wolverhampton City Council","http://opendatacommunities.org/id/metropolitan-district-council/wolverhampton",01/10/2014 00:00:00,"Investments","THE WORLD MARKETS COMPANY PLC","Services - Professional Fees",1425,"8999","All VAT recoverable"
"Wolverhampton City Council","http://opendatacommunities.org/id/metropolitan-district-council/wolverhampton",01/10/2014 00:00:00,"Governance","Thompson Group Services","R&M - Departmental planned (external)",860,"7399","All VAT recoverable"
"Wolverhampton City Council","http://opendatacommunities.org/id/metropolitan-district-council/wolverhampton",01/04/2014 00:00:00,"Pension Operations","UK MAIL LTD/BUSINESSPOST INTERNATNL.","Comms - Postage",21085.98,"4215","All VAT recoverable"
"Wolverhampton City Council","http://opendatacommunities.org/id/metropolitan-district-council/wolverhampton",01/06/2014 00:00:00,"Pension Operations","UK MAIL LTD/BUSINESSPOST INTERNATNL.","Comms - Postage",1025.82,"4215","All VAT recoverable"
"Wolverhampton City Council","http://opendatacommunities.org/id/metropolitan-district-council/wolverhampton",01/07/2014 00:00:00,"Pension Operations","UK MAIL LTD/BUSINESSPOST INTERNATNL.","Comms - Postage",1889.08,"4215","All VAT recoverable"
"Wolverhampton City Council","http://opendatacommunities.org/id/metropolitan-district-council/wolverhampton",01/10/2014 00:00:00,"Pension Operations","UK MAIL LTD/BUSINESSPOST INTERNATNL.","Comms - Postage",2305.93,"4215","All VAT recoverable"
"Wolverhampton City Council","http://opendatacommunities.org/id/metropolitan-district-council/wolverhampton",01/04/2014 00:00:00,"Governance","UK MAIL LTD/BUSINESSPOST INTERNATNL.","Comms - Postage",3417.33,"4215","All VAT recoverable"
"Wolverhampton City Council","http://opendatacommunities.org/id/metropolitan-district-council/wolverhampton",01/05/2014 00:00:00,"Governance","UK MAIL LTD/BUSINESSPOST INTERNATNL.","Comms - Postage",1995.92,"4215","All VAT recoverable"
"Wolverhampton City Council","http://opendatacommunities.org/id/metropolitan-district-council/wolverhampton",01/06/2014 00:00:00,"Governance","UK MAIL LTD/BUSINESSPOST INTERNATNL.","Comms - Postage",2994.84,"4215","All VAT recoverable"
"Wolverhampton City Council","http://opendatacommunities.org/id/metropolitan-district-council/wolverhampton",01/07/2014 00:00:00,"Governance","UK MAIL LTD/BUSINESSPOST INTERNATNL.","Comms - Postage",2939.17,"4215","All VAT recoverable"
"Wolverhampton City Council","http://opendatacommunities.org/id/metropolitan-district-council/wolverhampton",01/08/2014 00:00:00,"Governance","UK MAIL LTD/BUSINESSPOST INTERNATNL.","Comms - Postage",1440.05,"4215","All VAT recoverable"
"Wolverhampton City Council","http://opendatacommunities.org/id/metropolitan-district-council/wolverhampton",01/09/2014 00:00:00,"Governance","UK MAIL LTD/BUSINESSPOST INTERNATNL.","Comms - Postage",1377.28,"4215","All VAT recoverable"
"Wolverhampton City Council","http://opendatacommunities.org/id/metropolitan-district-council/wolverhampton",01/07/2014 00:00:00,"Governance","VENUE CATERING PARTNER LIMITED","Conference Expenses",1471.58,"5811","All VAT recoverable"
"Wolverhampton City Council","http://opendatacommunities.org/id/metropolitan-district-council/wolverhampton",01/04/2014 00:00:00,"Investments","PIRC Ltd","Services - Professional Fees",1729.2,"8999","All VAT recoverable"
"Wolverhampton City Council","http://opendatacommunities.org/id/metropolitan-district-council/wolverhampton",01/07/2014 00:00:00,"Investments","PIRC Ltd","Services - Professional Fees",90000,"8999","All VAT recoverable"
"Wolverhampton City Council","http://opendatacommunities.org/id/metropolitan-district-council/wolverhampton",01/10/2014 00:00:00,"Pension Operations","Barnett Waddingham LLP","Services - Professional Fees",6682.5,"6012","All VAT recoverable"
"Wolverhampton City Council","http://opendatacommunities.org/id/metropolitan-district-council/wolverhampton",01/04/2014 00:00:00,"Financial Services","Barnett Waddingham LLP","Services - Professional Fees",820,"6012","All VAT recoverable"
"Wolverhampton City Council","http://opendatacommunities.org/id/metropolitan-district-council/wolverhampton",01/07/2014 00:00:00,"Governance","EMB Excellence Ltd","Training Expenses",795,"8299","All VAT recoverable"
"Wolverhampton City Council","http://opendatacommunities.org/id/metropolitan-district-council/wolverhampton",01/04/2014 00:00:00,"Governance","Incisive Media Services Ltd","Staff Advertising Costs",740,"2741","All VAT recoverable"
"Wolverhampton City Council","http://opendatacommunities.org/id/metropolitan-district-council/wolverhampton",01/08/2014 00:00:00,"Governance","Incisive Media Services Ltd","Staff Advertising Costs",740,"2741","All VAT recoverable"
"Wolverhampton City Council","http://opendatacommunities.org/id/metropolitan-district-council/wolverhampton",01/07/2014 00:00:00,"Investments","Incisive Media Services Ltd","Staff Advertising Costs",520,"2741","All VAT recoverable"
"Wolverhampton City Council","http://opendatacommunities.org/id/metropolitan-district-council/wolverhampton",01/10/2014 00:00:00,"Investments","Incisive Media Services Ltd","Staff Advertising Costs",740,"2741","All VAT recoverable"
"Wolverhampton City Council","http://opendatacommunities.org/id/metropolitan-district-council/wolverhampton",01/04/2014 00:00:00,"Investments","Berwin Leighton Paisner LLP","Services - Professional Fees",6148.36,"8111","All VAT recoverable"
"Wolverhampton City Council","http://opendatacommunities.org/id/metropolitan-district-council/wolverhampton",01/04/2014 00:00:00,"Investments","GVA","Property Management - Supplies & Services - General",1000,"8999","All VAT recoverable"
"Wolverhampton City Council","http://opendatacommunities.org/id/metropolitan-district-council/wolverhampton",01/04/2014 00:00:00,"Investments","Sweett (UK) Limited","Property Management - Supplies & Services - General",15000,"8999","All VAT recoverable"
"Wolverhampton City Council","http://opendatacommunities.org/id/metropolitan-district-council/wolverhampton",01/04/2014 00:00:00,"Investments","AMEC Enviroment & Infrastructure","Property Management - Supplies & Services - General",1186,"8999","All VAT recoverable"
"Wolverhampton City Council","http://opendatacommunities.org/id/metropolitan-district-council/wolverhampton",01/05/2014 00:00:00,"Investments","IIGCC","Subscriptions",3173,"8999","All VAT recoverable"
"Wolverhampton City Council","http://opendatacommunities.org/id/metropolitan-district-council/wolverhampton",01/07/2014 00:00:00,"Pension Operations","KBW","Services - Professional Fees",3230,"8111","All VAT recoverable"
"Wolverhampton City Council","http://opendatacommunities.org/id/metropolitan-district-council/wolverhampton",01/08/2014 00:00:00,"Pension Operations","KBW","Services - Professional Fees",1350,"8111","All VAT recoverable"
"Wolverhampton City Council","http://opendatacommunities.org/id/metropolitan-district-council/wolverhampton",01/10/2014 00:00:00,"Pension Operations","KBW","Services - Professional Fees",825,"8111","All VAT recoverable"
"Wolverhampton City Council","http://opendatacommunities.org/id/metropolitan-district-council/wolverhampton",01/11/2014 00:00:00,"Pension Operations","KBW","Services - Professional Fees",11995,"8111","All VAT recoverable"
"Wolverhampton City Council","http://opendatacommunities.org/id/metropolitan-district-council/wolverhampton",01/07/2014 00:00:00,"Pension Operations","KBW","Services - Professional Fees",1750,"8111","All VAT recoverable"
"Wolverhampton City Council","http://opendatacommunities.org/id/metropolitan-district-council/wolverhampton",01/08/2014 00:00:00,"Pension Operations","KBW","Services - Professional Fees",1790,"8111","All VAT recoverable"
"Wolverhampton City Council","http://opendatacommunities.org/id/metropolitan-district-council/wolverhampton",01/11/2014 00:00:00,"Pension Operations","KBW","Services - Professional Fees",5340,"8111","All VAT recoverable"
"Wolverhampton City Council","http://opendatacommunities.org/id/metropolitan-district-council/wolverhampton",01/06/2014 00:00:00,"Investments","Mi","Property Management - Supplies & Services - General",7000,"8999","All VAT recoverable"
"Wolverhampton City Council","http://opendatacommunities.org/id/metropolitan-district-council/wolverhampton",01/06/2014 00:00:00,"Investments","UK Networks Land & Property Ltd","Property Management - Supplies & Services - General",7000,"8999","All VAT recoverable"
"Wolverhampton City Council","http://opendatacommunities.org/id/metropolitan-district-council/wolverhampton",01/07/2014 00:00:00,"Investments","UK Networks Land & Property Ltd","Property Management - Supplies & Services - General",7000,"8999","All VAT recoverable"
"Wolverhampton City Council","http://opendatacommunities.org/id/metropolitan-district-council/wolverhampton",01/08/2014 00:00:00,"Investments","UK Networks Land & Property Ltd","Property Management - Supplies & Services - General",3820,"8999","All VAT recoverable"
"Wolverhampton City Council","http://opendatacommunities.org/id/metropolitan-district-council/wolverhampton",01/10/2014 00:00:00,"Investments","UK Networks Land & Property Ltd","Property Management - Supplies & Services - General",7160,"8999","All VAT recoverable"
"Wolverhampton City Council","http://opendatacommunities.org/id/metropolitan-district-council/wolverhampton",01/11/2014 00:00:00,"Investments","UK Networks Land & Property Ltd","Property Management - Supplies & Services - General",3660,"8999","All VAT recoverable"
"Wolverhampton City Council","http://opendatacommunities.org/id/metropolitan-district-council/wolverhampton",01/06/2014 00:00:00,"Investments","Sackers & Partners LLP","Property Management - Legal Expenses",845.5,"8111","All VAT recoverable"
"Wolverhampton City Council","http://opendatacommunities.org/id/metropolitan-district-council/wolverhampton",01/10/2014 00:00:00,"Investments","Sackers & Partners LLP","Property Management - Legal Expenses",4500,"8111","All VAT recoverable"
"Wolverhampton City Council","http://opendatacommunities.org/id/metropolitan-district-council/wolverhampton",01/08/2014 00:00:00,"Investments","A Wilson And Sons Ltd","Property Management - Supplies & Services - General",66350.94,"1520","All VAT recoverable"
"Wolverhampton City Council","http://opendatacommunities.org/id/metropolitan-district-council/wolverhampton",01/06/2014 00:00:00,"Investments","A Wilson And Sons Ltd","Services - Professional Fees",93472.04,"1520","All VAT recoverable"
"Wolverhampton City Council","http://opendatacommunities.org/id/metropolitan-district-council/wolverhampton",01/06/2014 00:00:00,"Investments","Heritage Architecture Ltd","Property Management - Management Expenses",4050,"8911","All VAT recoverable"
"Wolverhampton City Council","http://opendatacommunities.org/id/metropolitan-district-council/wolverhampton",01/06/2014 00:00:00,"Investments","CC Cousins Ltd","Property Management - Supplies & Services - General",64670,"8999","All VAT recoverable"
"Wolverhampton City Council","http://opendatacommunities.org/id/metropolitan-district-council/wolverhampton",01/07/2014 00:00:00,"Investments","CC Cousins Ltd","Property Management - Supplies & Services - General",70866,"8999","All VAT recoverable"
"Wolverhampton City Council","http://opendatacommunities.org/id/metropolitan-district-council/wolverhampton",01/07/2014 00:00:00,"Investments","Redbourn Group Ltd","Property Management - Supplies & Services - General",12500,"8999","All VAT recoverable"
"Wolverhampton City Council","http://opendatacommunities.org/id/metropolitan-district-council/wolverhampton",01/07/2014 00:00:00,"Investments","Savills (UK) Limited","Property Management - Supplies & Services - General",5944.62,"8911","All VAT recoverable"
"Wolverhampton City Council","http://opendatacommunities.org/id/metropolitan-district-council/wolverhampton",01/07/2014 00:00:00,"Investments","Eversheds LLP","Property Management - Supplies & Services - General",3000,"8111","All VAT recoverable"
"Wolverhampton City Council","http://opendatacommunities.org/id/metropolitan-district-council/wolverhampton",01/07/2014 00:00:00,"Executive","Financial Reporting Council","Subscriptions",6506.81,"8999","All VAT recoverable"
"Wolverhampton City Council","http://opendatacommunities.org/id/metropolitan-district-council/wolverhampton",01/10/2014 00:00:00,"Executive","Financial Reporting Council","Subscriptions",1764,"8999","All VAT recoverable"
"Wolverhampton City Council","http://opendatacommunities.org/id/metropolitan-district-council/wolverhampton",01/07/2014 00:00:00,"Governance","WaterCoolers Direct.com Ltd","Water Charges",1895,"7299","All VAT recoverable"
"Wolverhampton City Council","http://opendatacommunities.org/id/metropolitan-district-council/wolverhampton",01/08/2014 00:00:00,"Governance","Kaizen Consultants","Printing",665,"2741","All VAT recoverable"
"Wolverhampton City Council","http://opendatacommunities.org/id/metropolitan-district-council/wolverhampton",01/10/2014 00:00:00,"Governance","Kaizen Consultants","Printing",1285,"2741","All VAT recoverable"
"Wolverhampton City Council","http://opendatacommunities.org/id/metropolitan-district-council/wolverhampton",01/07/2014 00:00:00,"Governance","Kaizen Consultants","Publications",1575,"2741","All VAT recoverable"
"Wolverhampton City Council","http://opendatacommunities.org/id/metropolitan-district-council/wolverhampton",01/08/2014 00:00:00,"Investments","NFU Mutual","Property Management - Insurances",8201.59,"6399","All VAT recoverable"
"Wolverhampton City Council","http://opendatacommunities.org/id/metropolitan-district-council/wolverhampton",01/08/2014 00:00:00,"Investments","KMHeritage Limited","Property Management - Supplies & Services - General",5500,"8999","All VAT recoverable"
"Wolverhampton City Council","http://opendatacommunities.org/id/metropolitan-district-council/wolverhampton",01/08/2014 00:00:00,"Investments","2110 Consult","Property Management - Supplies & Services - General",5453.26,"8999","All VAT recoverable"
"Wolverhampton City Council","http://opendatacommunities.org/id/metropolitan-district-council/wolverhampton",01/08/2014 00:00:00,"Investments","WSP UK Ltd","Property Management - Supplies & Services - General",10800,"8999","All VAT recoverable"
"Wolverhampton City Council","http://opendatacommunities.org/id/metropolitan-district-council/wolverhampton",01/10/2014 00:00:00,"Governance","Civil Service College","Training Expenses",1090,"8220","All VAT recoverable"
"Wolverhampton City Council","http://opendatacommunities.org/id/metropolitan-district-council/wolverhampton",01/10/2014 00:00:00,"Governance","Home Learning College","Training Expenses",2458.33,"8220","All VAT recoverable"
"Wolverhampton City Council","http://opendatacommunities.org/id/metropolitan-district-council/wolverhampton",01/10/2014 00:00:00,"Investments","TMS Consultancy","Property Management - Supplies & Services - General",1595,"8999","All VAT recoverable"
"Wolverhampton City Council","http://opendatacommunities.org/id/metropolitan-district-council/wolverhampton",01/11/2014 00:00:00,"Governance","Fields of Learning Ltd","Training Expenses",1403.5,"8299","All VAT recoverable"
"Wolverhampton City Council","http://opendatacommunities.org/id/metropolitan-district-council/wolverhampton",01/11/2014 00:00:00,"Investments","Howes Percival LLP","Property Management - Supplies & Services - General",1500,"8111","All VAT recoverable"
